Workbook

Sheet Kalkulator Pinjaman
B2: PINJAMAN KULIAH | G2: Rp50,000 | L2: 2011-05-10
B3: KALKULATOR
B5: Disarankan total pembayaran pinjaman kuliah bulanan tidak melebihi 8% gaji tahun pertama Anda.
C7: Total pembayaran bulanan saat ini: | F7: =CollegeLoans[[#Totals],[Pembayaran Bulanan Saat Ini]] -> Rp328.59 | I7: Total pembayaran bulanan terjadwal: | M7: =CollegeLoans[[#Totals],[Pembayaran Terjadwal]] -> Rp328.59
C8: Persentase penghasilan bulanan: | F8: =CollegeLoans[[#Totals],[Pembayaran Bulanan Saat Ini]]/EstimatedMonthlySalary -> 7.89% | I8: Persentase penghasilan bulanan: | M8: =CollegeLoans[[#Totals],[Pembayaran Terjadwal]]/EstimatedMonthlySalary -> 7.89%
C11: DETAIL PINJAMAN UMUM | G11: DATA PEMBAYARAN PINJAMAN | J11: DETAIL PEMBAYARAN
C12: No. Pinjaman | D12: Pemberi Pinjaman | E12: Jumlah Pinjaman | F12: Suku Bunga Tahunan | G12: Tanggal Mulai | H12: Jangka Waktu (Thn) | I12: Tanggal Selesai | J12: Pembayaran Bulanan Saat Ini | K12: Total Bunga | L12: Pembayaran Terjadwal | M12: Pembayaran Tahunan
C13: 10998M88 | D13: Pemberi Pinjaman 1 | E13: Rp10,000.00 | F13: 5.00% | G13: 2011-04-01 | H13: 10 | I13: =IF(AND(CollegeLoans[[#This Row],[Tanggal Mulai]]>0,CollegeLoans[[#This Row],[Jangka Waktu (Thn)]]>0),EDATE(CollegeLoans[[#This Row],[Tanggal Mulai]],CollegeLoans[[#This Row],[Jangka Waktu (Thn)]]*12),"") -> 2021-04-01 | J13: =IF(AND(LoanStartLToday,COUNT(CollegeLoans[[#This Row],[Jumlah Pinjaman]:[Jangka Waktu (Thn)]])=4,CollegeLoans[[#This Row],[Tanggal Mulai]]<TODAY()),PMT(CollegeLoans[[#This Row],[Suku Bunga Tahunan]]/12,CollegeLoans[[#This Row],[Jangka Waktu (Thn)]]*12,-CollegeLoans[[#This Row],[Jumlah Pinjaman]],0,0),"") -> Rp106.07 | K13: =IFERROR((CollegeLoans[[#This Row],[Pembayaran Terjadwal]]*(CollegeLoans[[#This Row],[Jangka Waktu (Thn)]]*12))-CollegeLoans[[#This Row],[Jumlah Pinjaman]],"") -> Rp2,727.86 | L13: =IF(COUNTA(CollegeLoans[[#This Row],[Jumlah Pinjaman]:[Jangka Waktu (Thn)]])<>4,"",PMT(CollegeLoans[[#This Row],[Suku Bunga Tahunan]]/12,CollegeLoans[[#This Row],[Jangka Waktu (Thn)]]*12,-CollegeLoans[[#This Row],[Jumlah Pinjaman]],0,0)) -> Rp106.07 | M13: =IFERROR(CollegeLoans[[#This Row],[Pembayaran Terjadwal]]*12,"") -> Rp1,272.79
C14: 20987N87 | D14: Pemberi Pinjaman 2 | E14: Rp8,000.00 | F14: 5.00% | G14: 2011-05-01 | H14: 10 | I14: =IF(AND(CollegeLoans[[#This Row],[Tanggal Mulai]]>0,CollegeLoans[[#This Row],[Jangka Waktu (Thn)]]>0),EDATE(CollegeLoans[[#This Row],[Tanggal Mulai]],CollegeLoans[[#This Row],[Jangka Waktu (Thn)]]*12),"") -> 2021-05-01 | J14: =IF(AND(LoanStartLToday,COUNT(CollegeLoans[[#This Row],[Jumlah Pinjaman]:[Jangka Waktu (Thn)]])=4,CollegeLoans[[#This Row],[Tanggal Mulai]]<TODAY()),PMT(CollegeLoans[[#This Row],[Suku Bunga Tahunan]]/12,CollegeLoans[[#This Row],[Jangka Waktu (Thn)]]*12,-CollegeLoans[[#This Row],[Jumlah Pinjaman]],0,0),"") -> Rp84.85 | K14: =IFERROR((CollegeLoans[[#This Row],[Pembayaran Terjadwal]]*(CollegeLoans[[#This Row],[Jangka Waktu (Thn)]]*12))-CollegeLoans[[#This Row],[Jumlah Pinjaman]],"") -> Rp2,182.29 | L14: =IF(COUNTA(CollegeLoans[[#This Row],[Jumlah Pinjaman]:[Jangka Waktu (Thn)]])<>4,"",PMT(CollegeLoans[[#This Row],[Suku Bunga Tahunan]]/12,CollegeLoans[[#This Row],[Jangka Waktu (Thn)]]*12,-CollegeLoans[[#This Row],[Jumlah Pinjaman]],0,0)) -> Rp84.85 | M14: =IFERROR(CollegeLoans[[#This Row],[Pembayaran Terjadwal]]*12,"") -> Rp1,018.23
C15: 36785LM | D15: Pemberi Pinjaman 3 | E15: Rp6,000.00 | F15: 4.50% | G15: 2012-03-01 | H15: 10 | I15: =IF(AND(CollegeLoans[[#This Row],[Tanggal Mulai]]>0,CollegeLoans[[#This Row],[Jangka Waktu (Thn)]]>0),EDATE(CollegeLoans[[#This Row],[Tanggal Mulai]],CollegeLoans[[#This Row],[Jangka Waktu (Thn)]]*12),"") -> 2022-03-01 | J15: =IF(AND(LoanStartLToday,COUNT(CollegeLoans[[#This Row],[Jumlah Pinjaman]:[Jangka Waktu (Thn)]])=4,CollegeLoans[[#This Row],[Tanggal Mulai]]<TODAY()),PMT(CollegeLoans[[#This Row],[Suku Bunga Tahunan]]/12,CollegeLoans[[#This Row],[Jangka Waktu (Thn)]]*12,-CollegeLoans[[#This Row],[Jumlah Pinjaman]],0,0),"") -> Rp62.18 | K15: =IFERROR((CollegeLoans[[#This Row],[Pembayaran Terjadwal]]*(CollegeLoans[[#This Row],[Jangka Waktu (Thn)]]*12))-CollegeLoans[[#This Row],[Jumlah Pinjaman]],"") -> Rp1,461.97 | L15: =IF(COUNTA(CollegeLoans[[#This Row],[Jumlah Pinjaman]:[Jangka Waktu (Thn)]])<>4,"",PMT(CollegeLoans[[#This Row],[Suku Bunga Tahunan]]/12,CollegeLoans[[#This Row],[Jangka Waktu (Thn)]]*12,-CollegeLoans[[#This Row],[Jumlah Pinjaman]],0,0)) -> Rp62.18 | M15: =IFERROR(CollegeLoans[[#This Row],[Pembayaran Terjadwal]]*12,"") -> Rp746.20
C16: 765R43 | D16: Pemberi Pinjaman 4 | E16: Rp4,000.00 | F16: 5.00% | G16: 2012-05-01 | H16: 5 | I16: =IF(AND(CollegeLoans[[#This Row],[Tanggal Mulai]]>0,CollegeLoans[[#This Row],[Jangka Waktu (Thn)]]>0),EDATE(CollegeLoans[[#This Row],[Tanggal Mulai]],CollegeLoans[[#This Row],[Jangka Waktu (Thn)]]*12),"") -> 2017-05-01 | J16: =IF(AND(LoanStartLToday,COUNT(CollegeLoans[[#This Row],[Jumlah Pinjaman]:[Jangka Waktu (Thn)]])=4,CollegeLoans[[#This Row],[Tanggal Mulai]]<TODAY()),PMT(CollegeLoans[[#This Row],[Suku Bunga Tahunan]]/12,CollegeLoans[[#This Row],[Jangka Waktu (Thn)]]*12,-CollegeLoans[[#This Row],[Jumlah Pinjaman]],0,0),"") -> Rp75.48 | K16: =IFERROR((CollegeLoans[[#This Row],[Pembayaran Terjadwal]]*(CollegeLoans[[#This Row],[Jangka Waktu (Thn)]]*12))-CollegeLoans[[#This Row],[Jumlah Pinjaman]],"") -> Rp529.10 | L16: =IF(COUNTA(CollegeLoans[[#This Row],[Jumlah Pinjaman]:[Jangka Waktu (Thn)]])<>4,"",PMT(CollegeLoans[[#This Row],[Suku Bunga Tahunan]]/12,CollegeLoans[[#This Row],[Jangka Waktu (Thn)]]*12,-CollegeLoans[[#This Row],[Jumlah Pinjaman]],0,0)) -> Rp75.48 | M16: =IFERROR(CollegeLoans[[#This Row],[Pembayaran Terjadwal]]*12,"") -> Rp905.82
C17: Total | E17: =SUBTOTAL(109,CollegeLoans[Jumlah Pinjaman]) -> Rp28,000.00 | J17: =SUBTOTAL(109,CollegeLoans[Pembayaran Bulanan Saat Ini]) -> Rp328.59 | K17: =SUBTOTAL(109,CollegeLoans[Total Bunga]) -> Rp6,901.21 | L17: =SUBTOTAL(109,CollegeLoans[Pembayaran Terjadwal]) -> Rp328.59 | M17: =SUBTOTAL(109,CollegeLoans[Pembayaran Tahunan]) -> Rp3,943.03
C18: Rata-rata | E18: =AVERAGE(CollegeLoans[Jumlah Pinjaman]) -> Rp7,000.00 | F18: =AVERAGE(CollegeLoans[Suku Bunga Tahunan]) -> 4.88% | K18: =AVERAGE(CollegeLoans[Total Bunga]) -> Rp1,725.30 | M18: =AVERAGE(CollegeLoans[Pembayaran Tahunan]) -> Rp985.76
K20: Total Pembayaran Pinjaman Konsolidasi: | M20: =CollegeLoans[[#Totals],[Jumlah Pinjaman]]+CollegeLoans[[#Totals],[Total Bunga]] -> Rp34,901.21
K22: Estimasi Pendapatan Bulanan Setelah Lulus: | M22: =(EstimatedAnnualSalary/12) -> Rp4,166.67
